[Event "85th ARM-ch HL 2025"]
[Site "Yerevan"]
[Date "2025.01.19"]
[Round "6.3"]
[White "Harutyunyan, Tigran K."]
[Black "Sargsyan, Sargis Vach."]
[Result "0-1"]
[Annotator "TA"]
[ECO "A07"]
[WhiteElo "2513"]
[BlackElo "2370"]
[PlyCount "88"]
[EventDate "2025.01.13"]
[EventType "tourn"]
[EventCountry "ARM"]
[SourceTitle "playchess.com"]
[Source "ChessBase"]
[SourceQuality "1"]
[TimeControl "40/5400+30:1800+30"]

{[%evp 9,88,0,0,0,9,17,20,15,25,0,-2,0,-6,-7,-14,-19,-21,-14,-12,-14,-21,-18,-12,-43,-43,-60,-29,-16,-14,-46,-51,-76,-80,-173,-166,-173,-165,-199,-215,-216,-196,-212,-180,-202,-194,-222,-224,-291,-291,-283,-283,-412,-415,-382,-345,-318,-305,-527,-522,-805,-487,-480,-480,-1661,-1616,-2556,-2725,-1806,-4482,-29976,-29977,-29976,-29978,-29977,-29979,-29977,-29979,-29982,-29982,-29982,-29983]} 1. Nf3 {[%emt 0:02:25]} d5 {[%emt 0:00:24]} 2. g3 {[%emt 0:00:10]} Bg4 {[%emt 0:01:50]} 3. Bg2 {[%emt 0:00:27]} c6 {[%emt 0:01:07]} 4. O-O {[%emt 0:02:42]} Nd7 {[%emt 0:01:02]} 5. h3 {[%emt 0:00:26]} Bh5 {[%emt 0:02:22]} 6. d4 {[%emt 0:00:44][%cal Oc2c4]} Ngf6 {[%emt 0:01:38] [#]} 7. c4 $1 {[%emt 0:00:49]} e6 {[%emt 0:00:25]} 8. cxd5 {[%emt 0:02:13]} exd5 {[%emt 0:02:03]} 9. Ne5 {[%emt 0:00:16]} Ne4 {[%emt 0:02:32]} 10. Nd2 {[%emt 0:02:10]} f5 {[%emt 0:00:15]} 11. Nxe4 {[%emt 0:05:58]} fxe4 {[%emt 0:00:19]} 12. f3 {[%emt 0:06:03]} Nxe5 {[%emt 0:00:33]} 13. dxe5 {[%emt 0:00:37]} Bc5+ {[%emt 0:02:58]} 14. Kh1 {[%emt 0:00:58]} O-O {[%emt 0:00:38]} 15. g4 {[%emt 0:05:44]} Bf7 {[%emt 0:01:34]} 16. Bf4 {[%emt 0:06:51]} h5 {[%emt 0:02:27]} 17. gxh5 {[%emt 0:02:54]} Qh4 {[%emt 0:16:39]} 18. fxe4 {[%emt 0:07:51]} Bxh5 {[%emt 0:17:44]} 19. Qc2 {[%emt 0:03:56]} Bb6 {[%emt 0:03:52]} 20. Bh2 {[%emt 0:08:14] [#]} Bg6 $1 {[%emt 0:08:05] Black is much more active.} 21. e6 {[%emt 0:04:34]} (21. Rf3 $17) 21... Rxf1+ $19 {[%emt 0:01:57]} 22. Rxf1 {[%emt 0:00:18]} Re8 {[%emt 0:00:10]} (22... Bxe4 23. Bxe4 dxe4 24. Rf4 Qxh3 25. e7 $11 (25. Qxe4 $2 Rd8 $19)) 23. Qc3 {[%emt 0:20:31]} Bxe4 {[%emt 0:01:36]} (23... dxe4 24. Be5 $11) 24. Qe5 {[%emt 0:01:23] [#]} Bd4 $1 $40 {[%emt 0:00:58][%mdl 640] Black attacks with force.} 25. Qf4 {[%emt 0:03:51]} Qxf4 {[%emt 0:00:39]} (25... Qxh3 26. Qxe4 $15) 26. Rxf4 {[%emt 0:00:08]} Rxe6 {[%emt 0:01:37]} 27. Bxe4 {[%emt 0:00:08]} Rxe4 {[%emt 0:00:08]} ({Don't do} 27... dxe4 28. Bg1 Bxb2 29. Bxa7) 28. Rxe4 {[%emt 0:00:58]} dxe4 {[%emt 0:00:04][%mdl 4096] Endgame KB-KB. Black is a pawn up.} 29. b3 {[%emt 0:00:03]} Kf7 {[%emt 0:00:32]} 30. Bf4 {[%emt 0:00:17]} (30. Kg2 {might work better.}) 30... Ke6 {[%emt 0:00:39]} 31. Kg2 {[%emt 0:00:07]} Kd5 {[%emt 0:02:17]} 32. Bc1 {[%emt 0:03:15]} c5 {[%emt 0:00:47]} 33. Kg3 $2 {[%emt 0:00:56]} (33. Kf1) 33... b5 {[%emt 0:01:38]} 34. Kf4 {[%emt 0:00:21]} c4 {[%emt 0:01:57]} 35. bxc4+ {[%emt 0:00:15]} bxc4 {[%emt 0:00:04]} 36. h4 {[%emt 0:00:10]} (36. Kg3 $142) 36... Bf2 {[%emt 0:03:29]} 37. h5 {[%emt 0:02:02]} c3 {[%emt 0:00:13] And now ...Kd4 would win.} 38. Kf5 {[%emt 0:00:20]} Be1 {[%emt 0:00:10] ( -> ...Bd2)} 39. Kg6 {[%emt 0:00:12]} Bd2 {[%emt 0:00:07]} 40. Ba3 {[%emt 0:00:00]} c2 {[%emt 0:00:00]} 41. Kxg7 {[%emt 0:00:36]} c1=Q {[%emt 0:00:31]} 42. Bxc1 {[%emt 0:00:05]} Bxc1 {[%emt 0:00:05]} 43. h6 {[%emt 0:00:15]} Kd4 {[%emt 0:01:22]} 44. h7 {[%emt 0:00:08]} Ke3 {[%emt 0:00:03]} 0-1

[Event "85th ARM-ch HL 2025"]
[Site "Yerevan"]
[Date "2025.01.19"]
[Round "6.4"]
[White "Agasarov, Benik"]
[Black "Andriasian, Zaven"]
[Result "1-0"]
[Annotator "TA"]
[ECO "B92"]
[WhiteElo "2387"]
[BlackElo "2554"]
[PlyCount "123"]
[EventDate "2025.01.13"]
[EventType "tourn"]
[EventCountry "ARM"]
[SourceTitle "playchess.com"]
[Source "ChessBase"]
[SourceQuality "1"]
[TimeControl "40/5400+30:1800+30"]

{[%evp 17,123,0,4,0,9,10,11,9,2,14,25,14,57,56,42,29,62,1,82,-10,-2,-72,-72,-72,-75,-81,-90,-68,-79,-68,-31,-58,-19,-19,-19,-42,0,0,0,-8,-34,-29,-21,-87,-93,-93,-79,-215,-210,-304,-82,-110,-18,-129,-127,-107,0,0,-6,-4,-6,-263,-221,-275,-270,-270,-264,-375,-434,-399,-421,-420,-408,-325,-307,-427,0,0,0,0,0,0,0,10,1022,886,1074,974,1724,1590,1512,918,29980,0,0,0,29980,29981,29981,29982,29982,29983,29988,29986,29986,29986,29987,29988]} 1. e4 {[%emt 0:00:03]} c5 {[%emt 0:00:12]} 2. Nf3 {[%emt 0:00:06]} d6 {[%emt 0:00:10]} 3. d4 {[%emt 0:00:06]} cxd4 {[%emt 0:00:14]} 4. Nxd4 {[%emt 0:00:06]} Nf6 {[%emt 0:00:12]} 5. Nc3 {[%emt 0:00:07]} a6 {[%emt 0:00:07]} 6. Be2 {[%emt 0:00:06]} e5 {[%emt 0:00:27]} 7. Nb3 {[%emt 0:01:28]} Be7 {[%emt 0:00:12]} 8. g4 {[%emt 0:00:00]} h6 {[%emt 0:00:59]} 9. Be3 {[%emt 0:00:00]} Be6 {[%emt 0:01:21]} 10. h4 {[%emt 0:00:00]} Nc6 {[%emt 0:11:34]} 11. Nd5 {[%emt 0:01:26]} Rc8 {[%emt 0:01:56]} 12. f3 {[%emt 0:03:18]} Bxd5 {[%emt 0:07:50]} 13. exd5 {[%emt 0:00:06]} Nb4 {[%emt 0:00:12]} 14. c4 {[%emt 0:00:14]} a5 {[%emt 0:06:30]} 15. a3 {[%emt 0:10:01]} Na6 $1 {[%emt 0:00:43]} 16. Nd2 {[%emt 0:12:03]} Nd7 {[%emt 0:01:27]} 17. Ne4 {[%emt 0:16:46]} (17. Kf1 $14) 17... Bxh4+ {[%emt 0:06:42]} (17... Nac5 $11) 18. Kd2 {[%emt 0:01:04]} (18. Kf1 $16 Be7 19. b4) 18... Ndc5 {[%emt 0:03:29]} 19. Rxh4 {[%emt 0:12:19]} (19. Nxd6+ $1 $11 Qxd6 20. Rxh4) 19... Nxe4+ $17 {[%emt 0:00:30]} 20. fxe4 {[%emt 0:00:03]} Qxh4 {[%emt 0:00:11]} 21. Qa4+ {[%emt 0:00:05]} Kf8 {[%emt 0:01:51]} (21... Ke7 {is more complex.} 22. Qb5 Nb8 23. c5 Rhd8) 22. b4 {[%emt 0:06:32]} axb4 {[%emt 0:12:22]} 23. axb4 {[%emt 0:04:37]} Qd8 {[%emt 0:06:21]} 24. Qb5 {[%emt 0:05:45]} Qc7 {[%emt 0:04:17]} 25. c5 {[%emt 0:04:44]} g6 {[%emt 0:07:16]} (25... dxc5 $6 26. bxc5 Kg8 (26... Nxc5 $2 27. Qxc5+ Qxc5 28. Bxc5+ Rxc5 29. Ra8+ Ke7 30. Rxh8 $18) 27. d6 $16) 26. Rc1 {[%emt 0:02:03]} (26. c6 bxc6 27. Qxa6 cxd5 $17) (26. Qa5 {simplifies} dxc5 27. Bxa6 Qxa5 28. Rxa5 bxa6 29. bxc5 h5 30. gxh5 gxh5 31. Rxa6 h4 32. d6) 26... dxc5 {[%emt 0:06:34]} 27. bxc5 {[%emt 0:00:25]} Kg7 {[%emt 0:00:13]} 28. d6 {[%emt 0:05:53]} Rhd8 {[%emt 0:02:26]} 29. Ke1 $1 {[%emt 0:01:57]} (29. Bd4 $2 Rxd6 30. c6 Rxd4+ $19) 29... Qc6 {[%emt 0:01:08]} 30. Qxc6 {[%emt 0:01:29]} (30. Qb2 $1 $11 Qxe4 31. Kf2 Nxc5 32. Rxc5 Rxc5 33. Bxc5) 30... Rxc6 $17 {[%emt 0:00:05]} 31. Bb5 {[%emt 0:00:32]} Rcc8 {[%emt 0:11:19]} 32. Bxa6 {[%emt 0:04:20]} (32. Ke2 $17) 32... bxa6 $19 {[%emt 0:00:04]} 33. Rb1 {[%emt 0:00:31]} (33. Ke2) 33... Rc6 $2 {[%emt 0:02:16]} (33... Kf6 $19 34. Rb7 a5) 34. Kd2 $17 {[%emt 0:01:05]} Kf6 {[%emt 0:01:48]} (34... Rd7 $17 35. Kd3 f6) 35. Kd3 {[%emt 0:00:46]} (35. Rf1+ $11 {remains equal.} Ke6 36. g5 Rdxd6+ (36... hxg5 37. Bxg5 $11) 37. cxd6 Rxd6+ 38. Ke1 hxg5 39. Bxg5) 35... Ke6 $17 {[%emt 0:02:04]} 36. Rb7 {[%emt 0:00:53]} Rd7 {[%emt 0:00:08]} (36... Rcc8 $1 $17 {Strongly threatening ...Rd7.} 37. Re7+ (37. Bxh6 $2 Rxc5 38. Rb6 Ra5 $19) 37... Kf6) 37. Rb8 $11 {[%emt 0:00:05]} f6 {[%emt 0:00:14]} 38. Rh8 {[%emt 0:00:25]} a5 {[%emt 0:01:36]} 39. Rxh6 $2 {[%emt 0:00:29][%mdl 8192]} (39. Kc4 $1 $11 {and White has nothing to worry.}) 39... a4 $1 $19 {[%emt 0:00:07]} 40. Rxg6 {[%emt 0:00:00]} Kf7 {[%emt 0:00:00]} (40... a3 41. g5 Rf7 42. Kc2 $17) 41. Rh6 {[%emt 0:06:57]} a3 {[%emt 0:03:05]} 42. g5 {[%emt 0:15:03] [#]} (42. Kc2 {might work better.} Rdxd6 43. Rh7+ Ke6 44. Ra7) 42... a2 $1 $19 {[%emt 0:03:22]} 43. Rxf6+ {[%emt 0:00:11]} Ke8 {[%emt 0:02:45]} 44. Rf1 {[%emt 0:00:10]} Ra6 {[%emt 0:01:40]} 45. Ra1 {[%emt 0:00:10] [#]} Rb7 $1 {[%emt 0:01:30]} ({Stronger than} 45... Ra3+ 46. Kc4 $16) 46. g6 {[%emt 0:04:25]} Ra3+ $2 {[%emt 0:02:38]} ({Black should play} 46... Rb3+ $19 47. Ke2 Kd7 (47... Raa3 48. Bc1 $17)) 47. Kc4 $11 {[%emt 0:02:33]} Rxe3 {[%emt 0:02:55]} 48. Rxa2 {[%emt 0:02:37]} Kd7 $1 {[%emt 0:03:06]} (48... Rxe4+ 49. Kd5 Rd4+ 50. Kc6 $18 (50. Ke6 Kf8 $16)) 49. Kd5 {[%emt 0:02:35]} Rd3+ {[%emt 0:00:43]} 50. Kxe5 {[%emt 0:00:03]} Rg3 $2 {[%emt 0:03:17][%mdl 8192]} (50... Kc6 $11) 51. Ra6 $18 {[%emt 0:04:13]} Rb5 {[%emt 0:02:33]} 52. Ra7+ {[%emt 0:00:54]} Kd8 {[%emt 0:00:37]} 53. Kd5 {[%emt 0:02:43]} Rxg6 {[%emt 0:02:00]} 54. e5 {[%emt 0:01:50]} Rg5 {[%emt 0:00:07]} 55. Ra8+ $2 {[%emt 0:00:56]} (55. Kc6 {mates} Rb8 56. Rd7+ Ke8 57. Rh7 Rc8+ 58. Kd5 Kd8 59. Rh8+ Kd7 60. c6+ Rxc6 61. Rh7+ Kc8 62. Kxc6) 55... Kd7 $11 {[%emt 0:00:01]} 56. Ra7+ $2 {[%emt 0:00:04][%mdl 8192]} (56. Ra6 $11 Rxc5+ 57. Kxc5 Rxe5+ 58. Kd4) 56... Kd8 {[%emt 0:00:09]} 57. Kc6 {[%emt 0:00:37]} Rb8 {[%emt 0:00:25]} 58. Rd7+ {[%emt 0:00:08]} Ke8 {[%emt 0:01:52]} 59. Rh7 {[%emt 0:00:04]} Rg8 {[%emt 0:00:15]} 60. Kc7 {[%emt 0:00:59]} Ra8 {[%emt 0:01:50]} 61. d7+ {[%emt 0:00:04]} Kf8 {[%emt 0:00:02]} 62. e6 {[%emt 0:00:36]} 1-0

[Event "85th ARM-ch HL 2025"]
[Site "Yerevan"]
[Date "2025.01.19"]
[Round "6.5"]
[White "Gharibyan, Mamikon"]
[Black "Petrosyan, Manuel"]
[Result "1/2-1/2"]
[Annotator "TA"]
[ECO "A46"]
[WhiteElo "2486"]
[BlackElo "2590"]
[PlyCount "53"]
[EventDate "2025.01.13"]
[EventType "tourn"]
[EventCountry "ARM"]
[SourceTitle "playchess.com"]
[Source "ChessBase"]
[SourceQuality "1"]
[TimeControl "40/5400+30:1800+30"]

{[%evp 9,53,-5,16,-3,9,0,0,-11,-6,-7,0,-20,0,-15,-16,-16,-15,-29,-25,-27,-21,-31,-26,-39,5,-27,-14,-10,0,-7,0,0,0,0,0,-25,-5,-11,0,0,19,-20,0,0,28,-8]} 1. d4 {[%emt 0:02:38]} Nf6 {[%emt 0:04:19]} 2. Nf3 {[%emt 0:00:40]} e6 {[%emt 0:00:55]} 3. Bf4 {[%emt 0:00:13]} c5 {[%emt 0:00:47]} 4. c3 {[%emt 0:01:50]} Nc6 {[%emt 0:01:54]} 5. e3 {[%emt 0:01:41]} h6 {[%emt 0:00:38]} 6. h3 {[%emt 0:07:47]} d5 {[%emt 0:01:03]} 7. Nbd2 {[%emt 0:06:10]} Bd6 {[%emt 0:00:38]} 8. Ne5 {[%emt 0:04:05]} Qc7 {[%emt 0:00:27]} 9. Ndf3 {[%emt 0:00:15]} c4 {[%emt 0:00:21]} 10. Qc2 {[%emt 0:06:20]} b5 {[%emt 0:25:18]} (10... Nd7 $5) 11. Be2 {[%emt 0:04:51]} Bb7 {[%emt 0:01:45]} 12. O-O {[%emt 0:02:08]} (12. Nxc6 {simplifies} Bxc6 13. Bxd6 Qxd6 14. O-O) 12... O-O {[%emt 0:01:16]} 13. b3 {[%emt 0:04:24]} Ne4 {[%emt 0:09:01]} 14. Nxc6 {[%emt 0:22:21]} Bxf4 {[%emt 0:14:48]} 15. exf4 {[%emt 0:01:54]} Bxc6 {[%emt 0:01:01]} 16. Ne5 {[%emt 0:04:43]} f6 {[%emt 0:05:26]} 17. Ng6 {[%emt 0:12:22]} cxb3 {[%emt 0:01:08]} 18. axb3 {[%emt 0:00:54]} Rfc8 {[%emt 0:00:12] ...Be8 is in the air} 19. f3 {[%emt 0:02:46]} Ng3 {[%emt 0:07:00][%cal Oc6e8] ...Be8! would now be deadly.} 20. Rfe1 {[%emt 0:00:17]} Nxe2+ {[%emt 0:19:02]} 21. Qxe2 {[%emt 0:01:27]} Re8 {[%emt 0:00:58]} 22. Ra6 {[%emt 0:02:59]} Bd7 {[%emt 0:00:24]} 23. Qd3 {[%emt 0:02:35]} Bc8 {[%emt 0:00:28]} 24. Ra2 {[%emt 0:01:00]} Bd7 {[%emt 0:00:05]} (24... Kf7 $5) 25. Ra6 {[%emt 0:00:16]} Bc8 {[%emt 0:00:09]} 26. Ra2 {[%emt 0:00:56]} Bd7 {[%emt 0:00:04]} 27. Ra6 {[%emt 0:01:44]} 1/2-1/2

[Event "85th ARM-ch HL 2025"]
[Site "Yerevan"]
[Date "2025.01.20"]
[Round "7.1"]
[White "Petrosyan, Manuel"]
[Black "Davtyan, Artur"]
[Result "1/2-1/2"]
[Annotator "TA"]
[ECO "C42"]
[WhiteElo "2590"]
[BlackElo "2458"]
[PlyCount "76"]
[EventDate "2025.01.13"]
[EventType "tourn"]
[EventCountry "ARM"]
[SourceTitle "playchess.com"]
[Source "ChessBase"]
[SourceQuality "1"]
[TimeControl "40/5400+30:1800+30"]

{[%evp 14,76,42,32,33,27,33,27,50,48,56,42,46,46,64,33,75,56,52,32,56,54,65,78,57,54,54,51,56,60,118,59,58,57,87,68,122,121,111,72,70,69,67,5,12,13,6,0,0,0,0,0,0,-50,-47,-47,0,0,0,0,0,0,0,0,0]} 1. e4 {[%emt 0:10:03]} e5 {[%emt 0:00:07]} 2. Nf3 {[%emt 0:00:04]} Nf6 {[%emt 0:00:05][%cal Bg8f6,Bf6e4,Be4d6,Bd6e4][%mdl 32]} 3. Nxe5 {[%emt 0:00:15]} d6 {[%emt 0:00:05]} 4. Nf3 {[%emt 0:00:04]} Nxe4 {[%emt 0:00:05]} 5. d4 {[%emt 0:00:03]} d5 {[%emt 0:00:09]} 6. Bd3 {[%emt 0:00:09]} Be7 {[%emt 0:00:06]} 7. O-O {[%emt 0:00:54]} Nc6 {[%emt 0:00:04]} 8. Nbd2 {[%emt 0:00:16][%cal Bb1d2,Bd2f1,Bf1g3][%mdl 32]} Nd6 {[%emt 0:02:21]} 9. c3 {[%emt 0:00:19]} Bf5 {[%emt 0:00:06]} 10. Bc2 {[%emt 0:06:03]} g6 {[%emt 0:12:37]} 11. Bb3 {[%emt 0:00:30]} Be6 {[%emt 0:00:30]} 12. Re1 {[%emt 0:00:30]} O-O {[%emt 0:00:30]} 13. Nf1 {[%emt 0:00:30]} Ne4 {[%emt 0:00:30]} 14. Ng3 {[%emt 0:00:30]} f5 {[%emt 0:00:30]} 15. Bh6 {[%emt 0:00:30]} Re8 {[%emt 0:00:30]} 16. Ba4 {[%emt 0:00:30]} Bd6 {[%emt 0:00:30]} 17. Qc1 {[%emt 0:00:30]} Qf6 {[%emt 0:00:30]} 18. Bf4 {[%emt 0:00:30]} Bf7 {[%emt 0:00:30]} 19. Bxc6 {[%emt 0:00:30]} (19. Ne2 Re7 20. Bxc6 Bxf4 21. Nxf4 Qxc6 22. Nd3) 19... bxc6 {[%emt 0:00:30]} 20. Ne5 {[%emt 0:00:30]} c5 {[%emt 0:00:30]} 21. f3 {[%emt 0:00:30]} cxd4 {[%emt 0:00:30]} ({Black should play} 21... Nxg3 $14 22. hxg3 cxd4 23. cxd4 Rab8) 22. cxd4 {[%emt 0:00:30]} (22. Nxe4 dxe4 (22... fxe4 23. cxd4 exf3 24. gxf3 $15) 23. cxd4 exf3 $15) (22. Nxf7 $16 Bxf4 23. Qxf4 Nxg3 24. Nh6+ (24. Qxd4 $2 Ne2+ 25. Rxe2 Qxd4+ 26. cxd4 Rxe2 $19) (24. Qxg3 Kxf7 25. Qxc7+ Kg8 $11) (24. Qxc7 $2 Ne2+ 25. Kf1 d3 $19) 24... Kg7 25. hxg3 dxc3 26. bxc3 (26. Qxc7+ Kxh6 27. bxc3 Rxe1+ 28. Rxe1 Qb6+ 29. Qxb6 axb6 $11) 26... Qxc3 27. Red1) 22... Nxg3 $14 {[%emt 0:00:30]} 23. hxg3 {[%emt 0:00:30]} c5 {[%emt 0:00:30]} 24. Qd2 {[%emt 0:00:30] aiming for Nd7. White is more active.} Re6 {[%emt 0:00:30]} (24... Be7 $14) 25. Nxf7 $16 {[%emt 0:00:30]} Kxf7 {[%emt 0:00:30]} 26. Bxd6 {[%emt 0:00:30]} Rxe1+ {[%emt 0:00:30]} 27. Rxe1 {[%emt 0:00:30]} Qxd6 {[%emt 0:00:30][%mdl 4096] Endgame KQR-KQR} 28. Qh6 {[%emt 0:00:30]} (28. dxc5 $14 Qxc5+ 29. Kh2) 28... Kg8 $11 {[%emt 0:00:30]} 29. Qh4 {[%emt 0:00:30]} cxd4 {[%emt 0:00:30][%cal Bc5d4,Bd4d3][%mdl 32]} 30. Re7 {[%emt 0:00:30]} (30. Qxd4 {simplifies} Qb6 31. Qxb6 axb6 32. a3) 30... h5 {[%emt 0:00:30]} 31. Rb7 {[%emt 0:00:30]} Rb8 {[%emt 0:00:30]} 32. Rxa7 {[%emt 0:00:30][%cal Bb7a7,Ba7a3,Ba3d3,Bd3d5][%mdl 32]} d3 {[%emt 0:00:30]} 33. Kh2 {[%emt 0:00:30]} ({Better is} 33. Qd4 $11 Qb6 34. Ra4 (34. Rg7+ Kf8 $17)) 33... f4 $1 $15 {[%emt 0:00:30]} 34. Ra3 $1 {[%emt 0:00:30]} fxg3+ {[%emt 0:00:30]} ({But not} 34... Rxb2 35. Rxd3 Rb4 36. g4 hxg4 37. Qxg4 $11) (34... d2 $15 35. Rd3 Rb4 (35... Rxb2 36. Qxf4 Qxf4 37. gxf4 $11)) 35. Qxg3 $11 {[%emt 0:00:30]} Qxg3+ {[%emt 0:00:30]} 36. Kxg3 {[%emt 0:00:30]} Rxb2 {[%emt 0:00:30]} 37. Rxd3 {[%emt 0:00:30]} Rxa2 {[%emt 0:00:30]} 38. Rxd5 {[%emt 0:00:30]} Kg7 {[%emt 0:00:30]} 1/2-1/2

[Event "85th ARM-ch HL 2025"]
[Site "Yerevan"]
[Date "2025.01.20"]
[Round "7.2"]
[White "Andriasian, Zaven"]
[Black "Gharibyan, Mamikon"]
[Result "1-0"]
[Annotator "TA"]
[ECO "B33"]
[WhiteElo "2554"]
[BlackElo "2486"]
[PlyCount "95"]
[EventDate "2025.01.13"]
[EventType "tourn"]
[EventCountry "ARM"]
[SourceTitle "playchess.com"]
[Source "ChessBase"]
[SourceQuality "1"]
[TimeControl "40/5400+30:1800+30"]

{[%evp 32,95,32,22,39,34,79,76,68,66,63,84,85,32,20,35,46,60,33,57,79,53,55,54,91,76,116,120,142,133,145,42,55,50,71,0,0,-22,4,5,53,79,62,69,121,110,239,239,207,196,292,287,313,237,327,308,279,250,552,602,583,473,616,626,554,533]} 1. e4 {[%emt 0:00:04]} c5 {[%emt 0:00:22]} 2. Nf3 {[%emt 0:00:09]} e6 {[%emt 0:00:21][%cal Be7e6,Be6e5][%mdl 32]} 3. d4 {[%emt 0:00:12]} cxd4 {[%emt 0:00:08]} 4. Nxd4 {[%emt 0:00:04]} Nc6 {[%emt 0:00:21]} 5. Nc3 {[%emt 0:00:08]} Nf6 {[%emt 0:00:06]} 6. Ndb5 {[%emt 0:01:23]} d6 {[%emt 0:00:22]} 7. Bf4 {[%emt 0:00:16]} e5 {[%emt 0:00:08]} 8. Bg5 {[%emt 0:00:07]} a6 {[%emt 0:00:05]} 9. Na3 {[%emt 0:00:11]} b5 {[%emt 0:00:08]} 10. Nd5 {[%emt 0:00:09]} Be7 {[%emt 0:00:05][%cal Bf8e7,Be7f6,Bf6g5][%mdl 32]} 11. Bxf6 {[%emt 0:00:17]} Bxf6 {[%emt 0:00:13]} 12. c4 {[%emt 0:00:57]} b4 {[%emt 0:00:19]} 13. Nc2 {[%emt 0:00:09]} O-O {[%emt 0:02:03]} 14. g3 {[%emt 0:01:51]} Bg5 {[%emt 0:03:00]} 15. Bg2 {[%emt 0:01:36]} Rb8 {[%emt 0:04:25]} 16. b3 {[%emt 0:03:44]} a5 {[%emt 0:03:24]} 17. O-O {[%emt 0:00:39]} Be6 {[%emt 0:00:54]} 18. f4 {[%emt 0:03:18]} Be7 {[%emt 0:28:06]} 19. Nxe7+ {[%emt 0:11:44]} Qxe7 {[%emt 0:18:42]} 20. f5 {[%emt 0:00:18]} Bc8 {[%emt 0:06:12] [#]} 21. f6 $1 {[%emt 0:02:47]} gxf6 {[%emt 0:03:17]} 22. Qd2 {[%emt 0:01:56]} ({Better is} 22. Qh5 $16) 22... Kh8 $14 {[%emt 0:04:30]} 23. Rf2 {[%emt 0:03:00]} (23. Qh6 Be6 $16) 23... Rg8 {[%emt 0:01:27]} 24. Raf1 {[%emt 0:01:42]} Be6 {[%emt 0:06:13]} 25. Rxf6 {[%emt 0:04:09]} Rg6 {[%emt 0:00:05]} 26. R6f2 {[%emt 0:01:19]} Rbg8 {[%emt 0:00:27]} 27. Qe3 {[%emt 0:09:09]} Qf8 {[%emt 0:06:50]} 28. Qb6 {[%emt 0:03:35]} Qc8 {[%emt 0:01:23]} 29. Ne3 {[%emt 0:05:29]} Qd7 {[%emt 0:05:15] [#]} 30. Nf5 $1 {[%emt 0:04:32]} Rf6 {[%emt 0:01:57]} 31. Nh4 {[%emt 0:10:24] White is much more active.} (31. Bh3 $16) 31... Rxf2 {[%emt 0:00:19]} 32. Qxf2 {[%emt 0:00:13]} Qa7 {[%emt 0:02:27]} 33. Nf5 {[%emt 0:06:59]} (33. Qxa7 $16 Nxa7 34. Rd1) 33... Qxf2+ $11 {[%emt 0:02:10]} 34. Kxf2 {[%emt 0:00:15]} Rd8 {[%emt 0:01:14][%cal Oa5a4]} 35. Rd1 {[%emt 0:02:47]} Bxf5 {[%emt 0:00:10]} (35... a4 $1 $11 {deserves consideration.}) 36. exf5 {[%emt 0:00:08][%mdl 4096] Endgame KRB-KRN} Nd4 {[%emt 0:00:08][%cal Oh8g7]} 37. f6 {[%emt 0:01:35]} h6 {[%emt 0:01:11]} (37... Rg8 $14) 38. Ke3 $16 {[%emt 0:00:51]} Kh7 {[%emt 0:00:29]} (38... Rc8 $16) 39. Be4+ $18 {[%emt 0:05:31]} Kg8 {[%emt 0:00:05] [#]} 40. g4 $1 {[%emt 0:00:00]} Kf8 {[%emt 0:00:00]} (40... Rd7 {was necessary.} 41. Rc1 Rc7) 41. h4 {[%emt 0:02:12]} Ke8 {[%emt 0:03:50]} 42. g5 {[%emt 0:06:23]} hxg5 {[%emt 0:03:36]} 43. hxg5 {[%emt 0:02:30]} Kd7 {[%emt 0:00:04]} 44. Rh1 {[%emt 0:03:40] Bd5 would now be deadly. Prevents Rh8} Rg8 $2 {[%emt 0:02:43] [#]} (44... Ke6 {is more resistant.} 45. Rh2 Rf8) 45. g6 $1 {[%emt 0:04:29][%mdl 512]} Rxg6 {[%emt 0:08:16]} 46. Bxg6 {[%emt 0:00:23]} fxg6 {[%emt 0:00:03]} 47. Rg1 {[%emt 0:01:29]} Ke6 {[%emt 0:03:38]} 48. Rxg6 {[%emt 0:29:47]} 1-0